fUST/lending_fUST_20250227
["ID","MTS","AMOUNT","RATE_DAILY","PERIOD"]
[354655759,1740603720211,-691.84,0.00054792,120]
[354655760,1740603720268,-500.0,0.00054792,120]
[354655761,1740603720329,-1340.83,0.00054792,120]
[354655762,1740603720389,-500.0,0.00054792,120]
[354655763,1740603720449,-500.0,0.00054792,120]
[354655764,1740603720506,-500.0,0.00054792,120]
[354655765,1740603720562,-4372.88,0.00054792,120]
[354655766,1740603720623,-500.0,0.00054792,120]
[354655767,1740603720679,-500.0,0.00054792,120]
[354655768,1740603720736,-500.0,0.00054792,120]
[354655769,1740603720789,-500.0,0.00054792,120]
[354655770,1740603720841,-500.0,0.00054792,120]
[354655771,1740603720893,-500.0,0.00054793,120]
[354655772,1740603720947,-500.0,0.00054793,120]
[354655773,1740603720997,-500.0,0.00054793,120]
[354655774,1740603721048,-500.0,0.00054793,45]
[354655775,1740603721099,-500.0,0.00054793,120]
[354655776,1740603721155,-500.0,0.00054793,120]
[354655777,1740603721216,-1609.22,0.00054793,120]
[354655778,1740603721269,-500.47,0.00054793,120]
[354655779,1740603721321,-500.0,0.00054793,120]
[354655780,1740603721375,-650.05,0.00054794,15]
[354655781,1740603721431,-500.0,0.00054794,120]
[354655782,1740603721491,-500.0,0.00054794,120]
[354655783,1740603721548,-500.0,0.00054794,120]
[354655784,1740603721604,-500.0,0.00054794,120]
[354655785,1740603721663,-500.0,0.00054794,120]
[354655786,1740603721723,-500.0,0.00054794,120]
[354655787,1740603721780,-546.29,0.00054794,120]
[354655788,1740603721833,-676.49,0.00054794,120]
[354655789,1740603721886,-500.0,0.00054794,120]
[354655790,1740603721938,-500.0,0.00054794,120]
[354655791,1740603721992,-540.91843139,0.00054794,120]
[354655792,1740603722051,-500.0,0.00054804,15]
[354655793,1740603722111,-500.0,0.0005483,14]
[354655794,1740603722173,-500.0,0.0005483,15]
[354655795,1740603722228,-500.0,0.0005483,15]
[354655796,1740603722283,-500.0,0.0005483,14]
[354655797,1740603722336,-500.0,0.00055066,120]
[354655798,1740603722392,-691.84,0.00055066,120]
[354655799,1740603722445,-500.0,0.00055066,120]
[354655800,1740603722497,-1340.83,0.00055066,120]
[354655801,1740603722548,-500.0,0.00055066,120]
[354655802,1740603722599,-500.0,0.00055066,120]
[354655803,1740603722650,-500.0,0.00055066,120]
[354655804,1740603722711,-4372.88,0.00055066,120]
[354655805,1740603722763,-500.0,0.00055066,120]
[354655806,1740603722814,-500.0,0.00055066,120]
[354655807,1740603722866,-500.0,0.00055066,120]
[354655808,1740603722918,-500.0,0.00055066,120]
[354655809,1740603722969,-500.0,0.00055066,120]
[354655810,1740603723020,-500.0,0.00055067,120]
[354655811,1740603723073,-500.0,0.00055067,120]
[354655812,1740603723125,-500.0,0.00055067,120]
[354655813,1740603723181,-500.0,0.00055067,45]
[354655814,1740603723237,-500.0,0.00055067,120]
[354655815,1740603723294,-500.0,0.00055067,120]
[354655816,1740603723350,-1609.22,0.00055067,120]
[354655817,1740603723410,-500.47,0.00055067,120]
[354655818,1740603723472,-500.0,0.00055067,120]
[354655819,1740603723527,-650.05,0.00055068,15]
[354655820,1740603723583,-500.0,0.00055068,120]
[354655821,1740603723637,-500.0,0.00055068,120]
[354655822,1740603723697,-500.0,0.00055068,120]
[354655823,1740603723752,-500.0,0.00055068,120]
[354655824,1740603723808,-500.0,0.00055068,120]
[354655825,1740603723864,-500.0,0.00055068,120]
[354655826,1740603723922,-546.29,0.00055068,120]
[354655827,1740603723982,-676.49,0.00055068,120]
[354655828,1740603724044,-500.0,0.00055068,120]
[354655829,1740603724103,-500.0,0.00055068,120]
[354655830,1740603724160,-500.0,0.00055203,30]
[354655831,1740603724220,-500.0,0.0005534,120]
[354655832,1740603724276,-691.84,0.0005534,120]
[354655833,1740603724332,-500.0,0.0005534,120]
[354655834,1740603724392,-1340.83,0.0005534,120]
[354655835,1740603724448,-500.0,0.0005534,120]
[354655836,1740603724607,-500.0,0.0005534,120]
[354655837,1740603724672,-500.0,0.0005534,120]
[354655838,1740603724735,-4372.88,0.0005534,120]
[354655839,1740603724801,-500.0,0.0005534,120]
[354655840,1740603724865,-500.0,0.0005534,120]
[354655841,1740603724925,-500.0,0.0005534,120]
[354655842,1740603724985,-500.0,0.0005534,120]
[354655843,1740603725046,-500.0,0.0005534,120]
[354655844,1740603725102,-500.0,0.00055341,120]
[354655845,1740603725157,-500.0,0.00055341,120]
[354655846,1740603725216,-500.0,0.00055341,120]
[354655847,1740603725270,-497.51042542,0.00055341,45]
[354655848,1740603725323,-500.0,0.00055341,120]
[354655849,1740603725376,-500.0,0.00055341,120]
[354655850,1740603725433,-1609.22,0.00055341,120]
[354655851,1740603725489,-500.47,0.00055341,120]
[354655852,1740603725543,-500.0,0.00055341,120]
[354655853,1740603725599,-650.05,0.00055342,15]
[354655854,1740603725658,-500.0,0.00055342,120]
[354655855,1740603725727,-500.0,0.00055342,120]
[354655856,1740603725788,-500.0,0.00055342,120]
[354655857,1740603725850,-500.0,0.00055342,120]
[354655858,1740603725913,-500.0,0.00055342,120]
[354655859,1740603725977,-500.0,0.00055342,120]
[354655860,1740603726037,-546.29,0.00055342,120]
[354655861,1740603726098,-676.49,0.00055342,120]
[354655862,1740603726158,-500.0,0.00055342,120]
[354655863,1740603726219,-500.0,0.00055342,120]
[354655864,1740603726278,-499.61,0.000554,30]
[354655865,1740603726334,-500.0,0.00055614,120]
[354655866,1740603726392,-691.84,0.00055614,120]
[354655867,1740603726449,-500.0,0.00055614,120]
[354655868,1740603726502,-1340.83,0.00055614,120]
[354655869,1740603726558,-500.0,0.00055614,120]
[354655870,1740603726614,-500.0,0.00055614,120]
[354655871,1740603726668,-500.0,0.00055614,120]
[354655872,1740603726726,-4372.88,0.00055614,120]
[354655873,1740603726784,-500.0,0.00055614,120]
[354655874,1740603726843,-500.0,0.00055614,120]
[354655875,1740603726899,-576.83826133,0.00055614,120]
[354655876,1740603726957,-500.0,0.00055614,120]
[354655877,1740603727011,-500.0,0.00055614,120]
[354655878,1740603727063,-500.0,0.00055615,120]
[354655879,1740603727113,-500.0,0.00055615,120]
[354655880,1740603727165,-500.0,0.00055615,120]
[354655881,1740603727218,-500.0,0.00055615,120]
[354655882,1740603727270,-500.0,0.00055615,120]
[354655883,1740603727325,-1609.22,0.00055615,120]
[354655884,1740603727390,-500.47,0.00055615,120]
[354655885,1740603727450,-500.0,0.00055615,120]
[354655886,1740603727506,-650.05,0.00055616,15]
[354655887,1740603727563,-523.10610799,0.00055616,120]
[354655888,1740603727620,-500.0,0.00055616,120]
[354655889,1740603727678,-500.0,0.00055616,120]
[354655890,1740603727735,-500.0,0.00055616,120]
[354655891,1740603727792,-500.0,0.00055616,120]
[354655892,1740603727851,-500.0,0.00055616,120]
[354655893,1740603727911,-546.29,0.00055616,120]
[354655894,1740603727970,-676.49,0.00055616,120]
[354655895,1740603728028,-500.0,0.00055616,120]
[354655896,1740603728085,-500.0,0.00055616,120]
[354655897,1740603728140,-500.0,0.00055888,120]
[354655898,1740603728195,-691.84,0.00055888,120]
[354655899,1740603728251,-500.0,0.00055888,120]
[354655900,1740603728310,-1340.83,0.00055888,120]
[354655901,1740603728375,-500.0,0.00055888,120]
[354655902,1740603728435,-500.0,0.00055888,120]
[354655903,1740603728492,-500.0,0.00055888,120]
[354655904,1740603728549,-4372.88,0.00055888,120]
[354655905,1740603728604,-267.5,0.00055888,120]
[354655906,1740603728662,-500.0,0.00055888,120]
[354655907,1740603728721,-500.0,0.00055888,120]
[354655908,1740603728777,-500.0,0.00055888,120]
[354655909,1740603728835,-500.0,0.00055889,120]
[354655910,1740603728892,-500.0,0.00055889,120]
[354655911,1740603728951,-500.0,0.00055889,120]
[354655912,1740603729008,-275.72822913,0.00055889,120]
[354655913,1740603938131,-175.0487146,0.0004211,120]
[354655914,1740603938151,-150.5892854,0.00042366,2]
[354655915,1740603944083,-126.4891369,0.00042366,2]
[354655916,1740603944106,-526.06552684,0.000449,2]
[354655917,1740604028119,-224.0,0.00025457,3]
[354655918,1740604028141,-250.0,0.00044174,2]
[354655919,1740604028162,-171.00300085,0.000449,2]
[354655920,1740604028183,-151.0,0.00045,120]
[354655921,1740604028203,-302.0,0.00045,120]
[354655922,1740604028224,-550.0,0.0004524,5]
[354655923,1740604028244,-200.0,0.0004524,60]
[354655924,1740604028264,-293.0,0.00045241,2]
[354655925,1740604028285,-4424.47833679,0.00045241,2]
[354655926,1740604048104,-591.16379724,0.00045141,120]
[354655927,1740604132883,160.0,0.0002,3]
[354655928,1740604133499,160.0,0.0002,3]
[354655931,1740604155091,-160.0,0.0003,10]
[354655932,1740604155113,-160.0,0.0003,10]
[354655933,1740604155133,-200.0,0.00042311,90]
[354655934,1740604155154,-151.0,0.00045,120]
[354655935,1740604155176,-792.00561288,0.00045141,120]
[354655936,1740604159125,-1217.55806976,0.00045141,120]
[354655937,1740604159148,-550.0,0.0004524,5]
[354655938,1740604159169,-317.43131502,0.0004524,60]
[354655939,1740604159192,-19552.22991381,0.00045241,2]
[354655940,1740604159213,-218.85080003,0.000453,10]
[354655941,1740604159240,-500.0,0.000453,10]
[354655942,1740604159264,-733.39296883,0.000459,10]
[354655943,1740604163116,-721.0,0.00047992,5]
[354655944,1740604163144,-1626.04209265,0.00047992,2]
[354655945,1740604163172,-151.0,0.00050027,120]
[354655946,1740604163201,-164.0,0.00050118,2]
[354655947,1740604163225,-1000.0,0.00050779,10]
[354655948,1740604163254,-1418.47034276,0.00051954,28]
[354655949,1740604163283,-154.0,0.00052,120]
[354655950,1740604163311,-564.58,0.00052044,30]
[354655951,1740604163341,-500.0,0.00052054,120]
[354655952,1740604163367,-500.0,0.00052054,120]
[354655953,1740604163392,-500.0,0.00052054,120]
[354655954,1740604163422,-500.0,0.00052054,120]
[354655955,1740604163448,-500.0,0.00052054,120]
[354655956,1740604163475,-500.0,0.00052054,120]
[354655957,1740604163504,-500.0,0.00052054,120]
[354655958,1740604163530,-500.0,0.00052054,120]
[354655959,1740604163558,-500.0,0.00052054,120]
[354655960,1740604163583,-500.0,0.00052054,120]
[354655961,1740604163609,-500.0,0.00052054,120]
[354655962,1740604163635,-500.0,0.00052054,120]
[354655963,1740604163660,-216.31,0.00052054,7]
[354655964,1740604163687,-500.0,0.00052054,120]
[354655965,1740604163712,-500.0,0.00052054,120]
[354655966,1740604163737,-500.0,0.00052054,120]
[354655967,1740604163764,-500.0,0.00052054,120]
[354655968,1740604163790,-500.0,0.00052054,120]
[354655969,1740604163815,-500.0,0.00052054,120]
[354655970,1740604163845,-500.0,0.00052054,120]
[354655971,1740604163873,-500.0,0.00052054,120]
[354655972,1740604163899,-346.19448229,0.00052054,120]
[354655973,1740604202646,187.3393777,0.0004488,2]
[354655974,1740604204183,-500.0,0.00052054,120]
[354655975,1740604204226,-153.80551771,0.00052054,120]
[354655976,1740604204267,-500.0,0.00052054,120]
[354655977,1740604204308,-500.0,0.00052054,120]
[354655978,1740604204348,-229.54,0.00052054,120]
[354655979,1740604204389,-500.0,0.00052054,120]
[354655980,1740604204437,-500.0,0.00052054,120]
[354655981,1740604204505,-500.0,0.00052054,120]
[354655982,1740604204551,-500.0,0.00052054,120]
[354655983,1740604204593,-500.0,0.00052054,120]
[354655984,1740604204637,-500.0,0.00052054,120]
[354655985,1740604204677,-500.0,0.00052054,120]
[354655986,1740604204717,-500.0,0.00052054,120]
[354655987,1740604204757,-500.0,0.00052054,120]
[354655988,1740604204798,-500.0,0.00052054,120]
[354655989,1740604204838,-500.0,0.00052054,120]
[354655990,1740604204888,-500.0,0.00052054,120]
[354655991,1740604204939,-500.0,0.00052054,120]
[354655992,1740604205012,-500.0,0.00052054,120]
[354655993,1740604205090,-504.78094853,0.00052054,120]
[354655994,1740604205154,-500.0,0.00052054,120]
[354655995,1740604205211,-500.0,0.00052054,120]
[354655996,1740604205255,-500.0,0.00052054,120]
[354655997,1740604205303,-500.0,0.00052054,120]
[354655998,1740604205346,-500.0,0.00052054,120]
[354655999,1740604205395,-564.46,0.00052054,120]
[354656000,1740604205444,-642.60144933,0.00052054,120]
[354656001,1740604205485,-559.59390385,0.00052054,120]
[354656002,1740604205532,-500.0,0.00052054,120]
[354656003,1740604205572,-500.0,0.00052054,120]
[354656004,1740604205612,-500.0,0.00052054,120]
[354656005,1740604205651,-500.0,0.00052054,120]
[354656006,1740604205690,-570.1,0.00052054,120]
[354656007,1740604205904,-500.0,0.00052054,120]
[354656008,1740604205944,-500.0,0.00052054,120]
[354656009,1740604205986,-500.0,0.00052054,120]
[354656010,1740604206027,-500.0,0.00052054,120]
[354656011,1740604206072,-500.0,0.00052054,120]
[354656012,1740604206111,-500.0,0.00052054,120]
[354656013,1740604206150,-500.0,0.00052054,120]
[354656014,1740604206188,-500.0,0.00052054,120]
[354656015,1740604206227,-500.0,0.00052054,120]
[354656016,1740604206265,-500.0,0.00052054,120]
[354656017,1740604206303,-500.0,0.00052054,120]
[354656018,1740604206339,-500.0,0.00052054,120]
[354656019,1740604206377,-500.0,0.00052054,120]
[354656020,1740604206416,-500.0,0.00052054,120]
[354656021,1740604206454,-500.0,0.00052054,120]
[354656022,1740604206491,-500.0,0.00052054,120]
[354656023,1740604206528,-500.0,0.00052054,120]
[354656024,1740604206568,-500.0,0.00052054,120]
[354656025,1740604206610,-649.63860799,0.00052054,120]
[354656026,1740604206652,-500.0,0.00052054,120]
[354656027,1740604206690,-500.0,0.00052054,120]
[354656028,1740604206730,-507.03300518,0.00052054,120]
[354656029,1740604206770,-500.0,0.00052054,120]
[354656030,1740604206809,-276.45885419,0.00052054,120]
[354656031,1740604206848,-500.0,0.00052054,120]
[354656032,1740604206886,-250.00584549,0.00052054,120]
[354656033,1740604206925,-448.96368673,0.00052054,120]
[354656034,1740604206963,-161.91501548,0.00052054,120]
[354656035,1740604207000,-500.0,0.00052054,120]
[354656036,1740604207039,-500.0,0.00052054,120]
[354656037,1740604207078,-378.739268,0.00052054,120]
[354656038,1740604207117,-202.53502607,0.00052054,120]
[354656039,1740604207161,-500.0,0.00052054,120]
[354656040,1740604207210,-406.21606807,0.00052054,120]
[354656041,1740604207262,-500.0,0.00052054,120]
[354656042,1740604207309,-160.96240777,0.00052054,120]
[354656043,1740604207354,-500.0,0.00052054,120]
[354656044,1740604207411,-500.0,0.00052054,120]
[354656045,1740604207465,-520.43,0.00052054,120]
[354656046,1740604207510,-401.55834924,0.00052054,120]
[354656047,1740604207552,-500.0,0.00052054,120]
[354656048,1740604207591,-500.0,0.00052054,120]
[354656049,1740604207631,-986.9,0.00052054,120]
[354656050,1740604207681,-500.0,0.00052054,120]
[354656051,1740604207739,-500.0,0.00052054,120]
[354656052,1740604207781,-500.0,0.00052054,120]
[354656053,1740604207850,-500.0,0.00052054,120]
[354656054,1740604207895,-208.40389348,0.00052054,120]
[354656055,1740604207943,-500.0,0.00052054,120]
[354656056,1740604207985,-500.0,0.00052054,120]
[354656057,1740604208035,-500.0,0.00052054,120]
[354656058,1740604208074,-500.0,0.00052054,120]
[354656059,1740604208112,-500.0,0.00052054,120]
[354656060,1740604208150,-553.29,0.00052054,120]
[354656061,1740604208189,-500.0,0.00052054,120]
[354656062,1740604208228,-500.0,0.00052054,120]
[354656063,1740604208291,-266.62679702,0.00052054,120]
[354656064,1740604208359,-500.0,0.00052054,120]
[354656065,1740604208409,-500.0,0.00052054,120]
[354656066,1740604208448,-500.0,0.00052054,2]
[354656067,1740604208491,-500.0,0.00052054,120]
[354656068,1740604208530,-500.0,0.00052054,120]
[354656069,1740604208572,-553.03,0.00052054,120]
[354656070,1740604208610,-500.0,0.00052054,120]
[354656071,1740604208648,-510.19,0.00052054,120]
[354656072,1740604208686,-500.0,0.00052054,120]
[354656073,1740604208750,-500.5069508,0.00052054,120]
[354656074,1740604208832,-500.0,0.00052054,120]
[354656075,1740604208882,-500.0,0.00052054,120]
[354656076,1740604208924,-501.61087686,0.00052054,120]
[354656077,1740604208963,-500.0,0.00052054,120]
[354656078,1740604209001,-500.0,0.00052054,120]
[354656079,1740604209039,-406.21093487,0.00052054,120]
[354656080,1740604209079,-500.0,0.00052054,120]
[354656081,1740604209118,-500.0,0.00052054,120]
[354656082,1740604209157,-500.0,0.00052054,120]
[354656083,1740604209198,-500.0,0.00052054,120]
[354656084,1740604209238,-500.0,0.00052054,120]
[354656085,1740604209277,-500.0,0.00052054,120]
[354656086,1740604209316,-500.0,0.00052054,120]
[354656087,1740604209355,-500.0,0.00052054,120]
[354656088,1740604209393,-500.0,0.00052054,120]
[354656089,1740604209430,-500.0,0.00052054,120]
[354656090,1740604209470,-500.0,0.00052054,120]
[354656091,1740604209508,-500.0,0.00052054,120]
[354656092,1740604209546,-630.09995008,0.00052054,120]
[354656093,1740604209585,-500.0,0.00052054,120]
[354656094,1740604209623,-500.0,0.00052054,120]
[354656095,1740604209660,-500.0,0.00052054,120]
[354656096,1740604209810,-500.0,0.00052054,120]
[354656097,1740604209852,-500.0,0.00052054,120]
[354656098,1740604209892,-500.0,0.00052054,120]
[354656099,1740604209937,-500.0,0.00052054,120]
[354656100,1740604209975,-500.0,0.00052054,120]
[354656101,1740604210015,-500.0,0.00052054,120]
[354656102,1740604210054,-500.0,0.00052054,120]
[354656103,1740604210091,-500.0,0.00052054,120]
[354656104,1740604210129,-1596.19,0.00052054,3]
[354656105,1740604210171,-500.0,0.00052054,120]
[354656106,1740604210208,-500.0,0.00052054,120]
[354656107,1740604210245,-500.0,0.00052054,120]
[354656108,1740604210282,-500.0,0.00052054,120]
[354656109,1740604210319,-500.0,0.00052054,120]
[354656110,1740604210355,-500.0,0.00052054,120]
[354656111,1740604210391,-500.0,0.00052054,120]
[354656112,1740604210430,-500.0,0.00052054,120]
[354656113,1740604210467,-440.14248299,0.00052054,120]
[354656114,1740604210504,-1000.0,0.00052054,30]
[354656115,1740604210542,-500.80502191,0.00052054,60]
[354656116,1740604210581,-500.0,0.00052054,120]
[354656117,1740604210618,-500.0,0.00052054,30]
[354656118,1740604210654,-507.46266855,0.00052054,120]
[354656119,1740604210692,-500.0,0.00052054,120]
[354656120,1740604210729,-500.0,0.00052054,120]
[354656121,1740604210769,-500.0,0.00052054,120]
[354656122,1740604210809,-500.0,0.00052054,120]
[354656123,1740604210851,-573.0,0.00052054,120]
[354656124,1740604210891,-500.0,0.00052054,120]
[354656125,1740604210934,-500.0,0.00052054,120]
[354656126,1740604210976,-500.0,0.00052054,120]
[354656127,1740604211016,-500.0,0.00052054,120]
[354656128,1740604211058,-500.0,0.00052054,120]
[354656129,1740604211099,-500.0,0.00052054,120]
[354656130,1740604211142,-500.0,0.00052054,120]
[354656131,1740604211182,-1842.87,0.00052054,120]
[354656132,1740604211219,-500.0,0.00052054,120]
[354656133,1740604211256,-557.18,0.00052054,120]
[354656134,1740604211293,-542.72,0.00052054,120]
[354656135,1740604211329,-500.0,0.00052054,120]
[354656136,1740604211365,-500.53823089,0.00052054,120]
[354656137,1740604211403,-500.0,0.00052054,120]
[354656138,1740604211439,-500.0,0.00052054,120]
[354656139,1740604211476,-500.0,0.00052054,120]
[354656140,1740604211512,-500.0,0.00052054,120]
[354656141,1740604211549,-500.0,0.00052054,120]
[354656142,1740604211587,-500.0,0.00052054,120]
[354656143,1740604211624,-500.0,0.00052054,120]
[354656144,1740604211660,-500.0,0.00052054,120]
[354656145,1740604211696,-500.0,0.00052054,120]
[354656146,1740604211731,-500.0,0.00052054,120]
[354656147,1740604211768,-500.0,0.00052054,120]
[354656148,1740604211805,-500.0,0.00052054,120]
[354656149,1740604211843,-500.0,0.00052054,120]
[354656150,1740604211882,-501.34536173,0.00052054,120]
[354656151,1740604211922,-500.0,0.00052054,120]
[354656152,1740604211960,-500.0,0.00052054,120]
[354656153,1740604211997,-500.63904926,0.00052054,120]
[354656154,1740604212035,-500.0,0.00052054,120]
[354656155,1740604212072,-500.0,0.00052054,120]
[354656156,1740604212108,-937.4487443,0.00052054,30]
[354656157,1740604212144,-500.0,0.00052054,120]
[354656158,1740604212180,-500.0,0.00052054,120]
[354656159,1740604212216,-504.17831705,0.00052054,120]
[354656160,1740604212252,-500.0,0.00052054,120]
[354656161,1740604212288,-500.0,0.00052054,120]
[354656162,1740604212323,-500.0,0.00052054,120]
[354656163,1740604212357,-625.0,0.00052054,120]
[354656164,1740604212393,-500.0,0.00052054,120]
[354656165,1740604212429,-500.0,0.00052054,120]
[354656166,1740604212471,-500.0,0.00052054,120]
[354656167,1740604212511,-500.0,0.00052054,120]
[354656168,1740604212584,-512.51,0.00052054,120]
[354656169,1740604212628,-500.0,0.00052054,120]
[354656170,1740604212687,-500.0,0.00052054,120]
[354656171,1740604212725,-500.0,0.00052054,120]
[354656172,1740604212763,-500.0,0.00052054,120]
[354656173,1740604212798,-500.0,0.00052054,120]
[354656174,1740604212837,-500.0,0.00052054,120]
[354656175,1740604212876,-500.0,0.00052054,120]
[354656176,1740604212914,-500.0,0.00052054,120]
[354656177,1740604212949,-255.06730179,0.00052054,120]
[354656178,1740604212986,-500.0,0.00052054,120]
[354656179,1740604213023,-500.0,0.00052054,120]
[354656180,1740604213063,-500.0,0.00052054,120]
[354656181,1740604213101,-500.0,0.00052054,120]
[354656182,1740604213140,-500.0,0.00052054,120]
[354656183,1740604213255,-500.0,0.00052054,120]
[354656184,1740604213310,-1000.0,0.00052054,2]
[354656185,1740604213348,-500.0,0.00052054,120]
[354656186,1740604213387,-500.0,0.00052054,120]
[354656187,1740604213424,-500.0,0.00052054,120]
[354656188,1740604213462,-500.0,0.00052054,120]
[354656189,1740604213501,-500.0,0.00052054,120]
[354656190,1740604213541,-500.0,0.00052054,120]
[354656191,1740604213583,-500.0,0.00052054,120]
[354656192,1740604213622,-500.0,0.00052054,120]
[354656193,1740604213660,-500.0,0.00052054,120]
[354656194,1740604213698,-500.0,0.00052054,120]
[354656195,1740604213739,-500.0,0.00052054,120]
[354656196,1740604213780,-500.0,0.00052054,120]
[354656197,1740604213819,-500.0,0.00052054,120]
[354656198,1740604213875,-500.0,0.00052054,120]
[354656199,1740604213930,-500.0,0.00052054,120]
[354656200,1740604213976,-500.0,0.00052054,120]
[354656201,1740604214037,-500.0,0.00052054,120]
[354656202,1740604214109,-500.0,0.00052054,120]
[354656203,1740604214164,-500.0,0.00052054,120]
[354656204,1740604214202,-500.0,0.00052054,120]
[354656205,1740604214240,-509.68746784,0.00052054,120]
[354656206,1740604214279,-501.81407955,0.00052054,120]
[354656207,1740604214317,-500.0,0.00052054,120]
[354656208,1740604214356,-500.0,0.00052054,120]
[354656209,1740604214397,-500.0,0.00052054,120]
[354656210,1740604214437,-500.0,0.00052054,120]
[354656211,1740604214477,-500.84622981,0.00052054,120]
[354656212,1740604214516,-500.0,0.00052054,120]
[354656213,1740604214558,-500.0,0.00052054,120]
[354656214,1740604214598,-500.0,0.00052054,120]
[354656215,1740604214636,-500.0,0.00052054,120]
[354656216,1740604214675,-500.0,0.00052054,120]
[354656217,1740604214712,-500.0,0.00052054,120]
[354656218,1740604214751,-500.0,0.00052054,120]
[354656219,1740604214790,-645.74860392,0.00052054,120]
[354656220,1740604214835,-500.0,0.00052054,120]
[354656221,1740604214886,-1181.45,0.00052054,120]
[354656222,1740604214924,-500.0,0.00052054,120]
[354656223,1740604214963,-500.0,0.00052054,120]
[354656224,1740604215002,-342.87776324,0.00052054,120]
[354656225,1740604215044,-500.0,0.00052054,120]
[354656226,1740604215087,-500.0,0.00052054,120]
[354656227,1740604215128,-500.0,0.00052054,120]
[354656228,1740604215168,-500.0,0.00052054,120]
[354656229,1740604215206,-500.0,0.00052054,120]
[354656230,1740604215243,-500.0,0.00052054,21]
[354656231,1740604215279,-500.0,0.00052054,120]
[354656232,1740604215316,-500.0,0.00052054,30]
[354656233,1740604215352,-500.73959956,0.00052054,120]
[354656234,1740604215389,-501.75558743,0.00052054,120]
[354656235,1740604215427,-500.0,0.00052054,120]
[354656236,1740604215463,-500.0,0.00052054,120]
[354656237,1740604215498,-531.52,0.00052054,120]
[354656238,1740604215541,-500.0,0.00052054,120]
[354656239,1740604215581,-500.0,0.00052054,120]
[354656240,1740604215618,-500.0,0.00052054,120]
[354656241,1740604215656,-503.85385095,0.00052054,120]
[354656242,1740604215693,-500.0,0.00052054,120]
[354656243,1740604215730,-500.0,0.00052054,120]
[354656244,1740604215772,-500.0,0.00052054,120]
[354656245,1740604215812,-500.0,0.00052054,120]
[354656246,1740604215855,-500.0,0.00052054,120]
[354656247,1740604215895,-500.0,0.00052054,120]
[354656248,1740604215938,-500.0,0.00052054,120]
[354656249,1740604215982,-766.36,0.00052054,120]
[354656250,1740604216025,-766.36,0.00052054,120]
[354656251,1740604216066,-766.36,0.00052054,120]
[354656252,1740604216105,-506.90601719,0.00052054,120]
[354656253,1740604216145,-766.36,0.00052054,120]
[354656254,1740604216183,-500.0,0.00052054,120]
[354656255,1740604216222,-500.0,0.00052054,120]
[354656256,1740604216260,-500.0,0.00052054,120]
[354656257,1740604216300,-500.0,0.00052054,120]
[354656258,1740604216346,-500.0,0.00052054,120]
[354656259,1740604216386,-500.0,0.00052054,120]
[354656260,1740604216425,-766.36,0.00052054,120]